fUST/lending_fUST_20250817
["ID","MTS","AMOUNT","RATE_DAILY","PERIOD"]
[379937148,1755443449808,-480.0,0.00019726,2]
[379937150,1755443449818,-480.0,0.00019726,2]
[379937152,1755443449828,-185.77770775,0.0002,2]
[379937154,1755443449837,-480.0,0.0002,2]
[379937156,1755443449847,-480.0,0.00020273,2]
[379937158,1755443449856,-480.0,0.00020547,2]
[379937159,1755443449866,-175.81307885,0.00021917,2]
[379937161,1755443449875,-712.35108331,0.00021917,2]
[379937179,1755443450036,-455.21866031,0.00019178,2]
[379937358,1755443451849,-24.78133969,0.00019178,2]
[379937360,1755443451859,-480.0,0.00019178,2]
[379937362,1755443451869,-500.0,0.00019178,2]
[379937364,1755443451878,-480.0,0.00020821,2]
[379937366,1755443451888,-480.0,0.00021095,2]
[379937368,1755443451897,-480.0,0.00021369,2]
[379937370,1755443451907,-167.55340293,0.00021643,2]
[379937371,1755443451917,-1375.18891669,0.00021917,2]
[379937373,1755443451926,-985.04,0.00021917,2]
[379937375,1755443451936,-480.0,0.00021917,2]
[379937377,1755443451945,-480.0,0.00021917,2]
[379937379,1755443451955,-110.9491993,0.00021917,2]
[379939011,1755443535752,1132.64284431,0.00018366,2]
[379939012,1755443535777,10000.0,0.00018366,2]
[379939013,1755443535802,10000.0,0.00018366,2]
[379939014,1755443535826,10000.0,0.00018366,2]
[379939015,1755443535851,10000.0,0.00018366,2]
[379939016,1755443535875,10000.0,0.00018366,2]
[379939017,1755443535900,10000.0,0.00018366,2]
[379939018,1755443535923,10000.0,0.00018366,2]
[379939019,1755443535948,10000.0,0.00018366,2]
[379939020,1755443535971,10000.0,0.00018366,2]
[379939021,1755443535996,10000.0,0.00018366,2]
[379939022,1755443536021,10000.0,0.00018366,2]
[379939023,1755443536048,10000.0,0.00018366,2]
[379939024,1755443536073,10000.0,0.00018366,2]
[379939025,1755443536098,10000.0,0.00018366,2]
[379939026,1755443536123,10000.0,0.00018366,2]
[379939027,1755443536149,10000.0,0.00018366,2]
[379939028,1755443536174,10000.0,0.00018366,2]
[379939029,1755443536199,10000.0,0.00018366,2]
[379939030,1755443536224,10000.0,0.00018366,2]
[379939031,1755443536248,10000.0,0.00018366,2]
[379939032,1755443536431,10000.0,0.00018366,2]
[379939033,1755443536455,913.7409917,0.00018366,2]
[379939034,1755443543755,5000.0,0.00018371,2]
[379939035,1755443545173,627.099489,0.00018125,2]
[379939036,1755443561281,1500.18796065,0.0001,2]
[379939044,1755443767609,299.999999,0.00028,120]
[379939045,1755443795391,1000.0,0.00018073,2]
[379939046,1755443879237,500.0,7.7e-07,120]
[379939047,1755443887114,500.0,7.7e-07,120]
[379939049,1755443896367,500.0,7.7e-07,120]
[379939050,1755443903743,500.0,7.7e-07,120]
[379939055,1755443952861,958.97155865,0.00018371,2]
[379939056,1755443952884,4041.02844135,0.00018371,2]
[379939064,1755443989938,170.72401,0.00018198,2]
[379939071,1755444129292,425.1516807,0.00018059,2]
[379939075,1755444161520,5000.0,0.00018371,2]
[379939095,1755444247667,363.09586795,0.00018085,2]
[379939096,1755444247691,445.58616298,0.00018085,2]
[379939097,1755444248065,315.565607,0.00018267,2]
[379939111,1755444366607,9238.84823002,0.00018046,2]
[379939112,1755444366631,761.15176998,0.00018046,2]
[379939113,1755444371751,5000.0,0.00018371,2]
[379939116,1755444388929,4238.84823002,0.00018371,2]
[379939117,1755444388953,761.15176998,0.00018371,2]
[379939121,1755444405960,5000.0,0.00018371,2]
[379939124,1755444423883,4238.84823002,0.00018371,2]
[379939125,1755444423941,761.15176998,0.00018371,2]
[379939127,1755444441001,5000.0,0.00018371,2]
[379939128,1755444457009,4238.84823002,0.00018371,2]
[379939129,1755444457034,761.15176998,0.00018371,2]
[379939131,1755444468221,9238.84823002,0.00018,2]
[379939132,1755444468247,4972.67513058,0.00018,2]
[379939133,1755444473145,539.529118,0.00013699,2]
[379939134,1755444474349,4487.79575142,0.00018371,2]
[379939135,1755444474376,512.20424858,0.00018371,2]
[379939136,1755444491243,5000.0,0.00018371,2]
[379939138,1755444507961,4487.79575142,0.00018371,2]
[379939139,1755444507986,512.20424858,0.00018371,2]
[379939140,1755444510910,9487.79575142,0.00017,2]
[379939141,1755444510934,10000.0,0.00017,2]
[379939142,1755444510957,5844.51177765,0.00017,2]
[379939143,1755444513727,4155.48822235,0.00018,2]
[379939144,1755444513751,10000.0,0.00018,2]
[379939145,1755444513775,10000.0,0.00018,2]
[379939146,1755444513798,954.46918326,0.00018,2]
[379939147,1755444514961,210.16977941,0.000149,2]
[379939148,1755444516084,296.84195414,0.00018371,2]
[379939151,1755444525798,5000.0,0.00018371,2]
[379939152,1755444536625,894.96228092,0.00018304,2]
[379939153,1755444541977,256.0,0.00018359,2]
[379939154,1755444542227,2387.55680227,0.00018371,2]
[379939155,1755444542255,2612.44319773,0.00018371,2]
[379939156,1755444558425,5000.0,0.00018371,2]
[379939157,1755444574333,2387.55680227,0.00018371,2]
[379939158,1755444574357,2612.44319773,0.00018371,2]
[379939159,1755444590868,5000.0,0.00018371,2]
[379939188,1755444606902,2387.55680227,0.00018371,2]
[379939189,1755444606928,2612.44319773,0.00018371,2]
[379939190,1755444622317,5000.0,0.00018371,2]
[379939206,1755444632356,-246.55821197,0.00018404,2]
[379939207,1755444632365,-202.75779828,0.000188,2]
[379939208,1755444632375,-268.41087829,0.00018832,2]
[379939209,1755444632403,-747.72943829,0.00018832,2]
[379939210,1755444632415,-736.45975202,0.00018832,2]
[379939211,1755444632424,-1350.03843723,0.000189,2]
[379939212,1755444632435,-500.0,0.00019,2]
[379939213,1755444632444,-290.09638263,0.00019067,2]
[379939214,1755444632455,-300.0,0.00019072,2]
[379939215,1755444632464,-300.0,0.00019072,2]
[379939217,1755444632473,-300.0,0.00019072,2]
[379939218,1755444632482,-1200.0,0.00019072,2]
[379939219,1755444632492,-1000.0,0.00019073,2]
[379939220,1755444632501,-937.28357139,0.00019073,2]
[379939223,1755444632511,-792.69338167,0.00019073,2]
[379939224,1755444632522,-296.84941049,0.00019075,2]
[379939226,1755444632532,-27905.21178414,0.00019076,2]
[379939228,1755444632547,-13940.19465932,0.00019076,2]
[379939229,1755444632559,-1645.24600636,0.00019076,2]
[379939230,1755444632571,-1481.00636694,0.00019076,2]
[379939231,1755444632580,-296.761828,0.00019076,2]
[379939232,1755444632591,-623.238172,0.00019076,2]
[379939233,1755444632601,-450.53650044,0.00019077,2]
[379939234,1755444632610,-4434.68567104,0.00019078,2]
[379939235,1755444632620,-203.3112737,0.00019078,2]
[379939236,1755444632630,-175117.30943958,0.00019078,2]
[379939237,1755444632639,-392.99993173,0.00019173,2]
[379939238,1755444632649,-248.07351204,0.00019173,2]
[379939240,1755444632658,-500.0,0.00019173,2]
[379939241,1755444632667,-500.0,0.00019173,2]
[379939242,1755444632677,-500.0,0.00019173,2]
[379939243,1755444632686,-500.0,0.00019173,2]
[379939244,1755444632695,-500.0,0.00019173,2]
[379939245,1755444632704,-500.0,0.00019173,2]
[379939246,1755444632713,-500.0,0.00019173,2]
[379939247,1755444632722,-500.0,0.00019173,2]
[379939248,1755444632732,-500.0,0.00019173,2]
[379939249,1755444632741,-500.0,0.00019173,2]
[379939250,1755444632749,-500.0,0.00019173,2]
[379939251,1755444632759,-512.61477236,0.00019173,2]
[379939252,1755444632768,-500.0,0.00019173,2]
[379939253,1755444632777,-500.0,0.00019173,2]
[379939254,1755444632787,-368.97223771,0.00019178,2]
[379939255,1755444632796,-461.43248746,0.00019178,2]
[379939256,1755444632806,-465.81582577,0.00019178,2]
[379939257,1755444632815,-480.0,0.00019178,2]
[379939258,1755444632824,-460.87160496,0.00019178,2]
[379939259,1755444632834,-461.9390523,0.00019178,2]
[379939260,1755444632843,-462.14093833,0.00019178,2]
[379939262,1755444632852,-464.17028739,0.00019178,2]
[379939264,1755444632861,-461.1877635,0.00019178,2]
[379939266,1755444632871,-465.68555844,0.00019178,2]
[379939268,1755444632881,-460.0,0.00019178,2]
[379939270,1755444632890,-462.04784653,0.00019178,2]
[379939272,1755444632900,-462.7161223,0.00019178,2]
[379939274,1755444632910,-463.24633266,0.00019178,2]
[379939276,1755444632919,-463.57777023,0.00019178,2]
[379939278,1755444632928,-340.73170207,0.00019178,2]
[379939280,1755444632937,-460.87845877,0.00019178,2]
[379939282,1755444632947,-463.36002261,0.00019178,2]
[379939284,1755444632956,-460.98756696,0.00019178,2]
[379939286,1755444632965,-198.52985664,0.00019178,2]
[379939288,1755444632974,-460.0,0.00019178,2]
[379939290,1755444632984,-460.0,0.00019178,2]
[379939292,1755444632995,-461.52773054,0.00019178,2]
[379939294,1755444633005,-462.8239863,0.00019178,2]
[379939296,1755444633015,-463.27744396,0.00019178,2]
[379939298,1755444633025,-462.41790337,0.00019178,2]
[379939300,1755444633034,-460.0,0.00019178,2]
[379939302,1755444633044,-360.0,0.00019178,2]
[379939304,1755444633054,-465.33929216,0.00019178,2]
[379939306,1755444633063,-462.47393229,0.00019178,2]
[379939308,1755444633073,-464.32943863,0.00019178,2]
[379939310,1755444633082,-463.19293877,0.00019178,2]
[379939312,1755444633092,-476.69261821,0.00019178,2]
[379939314,1755444633102,-460.0,0.00019178,2]
[379939316,1755444633112,-466.20510848,0.00019178,2]
[379939318,1755444633121,-460.0,0.00019178,2]
[379939320,1755444633131,-463.79630683,0.00019178,2]
[379939322,1755444633140,-544.22190305,0.00019178,2]
[379939324,1755444633149,-460.0,0.00019178,2]
[379939326,1755444633159,-480.0,0.00019178,2]
[379939328,1755444633169,-176.25933962,0.00019178,2]
[379939330,1755444633178,-462.84227019,0.00019178,2]
[379939332,1755444633188,-461.50952646,0.00019178,2]
[379939334,1755444633197,-461.31979162,0.00019178,2]
[379939336,1755444633207,-462.11333645,0.00019178,2]
[379939338,1755444633216,-461.32110844,0.00019178,2]
[379939340,1755444633226,-460.0,0.00019178,2]
[379939342,1755444633237,-460.0,0.00019178,2]
[379939344,1755444633247,-460.61695676,0.00019178,2]
[379939346,1755444633256,-460.31328305,0.00019178,2]
[379939348,1755444633265,-460.0,0.00019178,2]
[379939350,1755444633275,-571.78897975,0.00019178,2]
[379939352,1755444633284,-462.5317901,0.00019178,2]
[379939354,1755444633294,-460.0,0.00019178,2]
[379939356,1755444633304,-460.0,0.00019178,2]
[379939358,1755444633313,-461.75634417,0.00019178,2]
[379939360,1755444633323,-460.90083905,0.00019178,2]
[379939362,1755444633333,-462.07250017,0.00019178,2]
[379939364,1755444633342,-460.54099102,0.00019178,2]
[379939366,1755444633352,-480.0,0.00019178,2]
[379939368,1755444633362,-460.0,0.00019178,2]
[379939370,1755444633372,-461.81321093,0.00019178,2]
[379939372,1755444633383,-460.81983627,0.00019178,2]
[379939374,1755444633392,-460.0,0.00019178,2]
[379939376,1755444633402,-461.336506,0.00019178,2]
[379939378,1755444633412,-460.0,0.00019178,2]
[379939380,1755444633422,-460.0,0.00019178,2]
[379939382,1755444633431,-460.0,0.00019178,2]
[379939384,1755444633441,-460.0,0.00019178,2]
[379939386,1755444633450,-463.39535369,0.00019178,2]
[379939388,1755444633460,-480.0,0.00019178,2]
[379939389,1755444633469,-460.0,0.00019178,2]
[379939391,1755444633479,-480.0,0.00019178,2]
[379939393,1755444633488,-480.0,0.00019178,2]
[379939395,1755444633499,-460.0,0.00019178,2]
[379939397,1755444633508,-480.0,0.00019178,2]
[379939399,1755444633517,-220.86905948,0.00019178,2]
[379939505,1755444638446,-5000.0,0.00018986,2]
[379939506,1755444638455,-259.13094052,0.00019178,2]
[379939507,1755444638466,-461.14208811,0.00019178,2]
[379939508,1755444638476,-460.0,0.00019178,2]
[379939509,1755444638485,-461.92937327,0.00019178,2]
[379939510,1755444638494,-463.86739794,0.00019178,2]
[379939511,1755444638503,-483.1267617,0.00019178,2]
[379939512,1755444638512,-460.0,0.00019178,2]
[379939513,1755444638521,-463.6799411,0.00019178,2]
[379939514,1755444638530,-381.51137534,0.00019178,2]
[379939515,1755444638539,-461.13424404,0.00019178,2]
[379939516,1755444638549,-462.31573255,0.00019178,2]
[379939517,1755444638558,-460.0,0.00019178,2]
[379939518,1755444638568,-460.0,0.00019178,2]
[379939519,1755444638576,-460.76445627,0.00019178,2]
[379939520,1755444638585,-461.02656491,0.00019178,2]
[379939521,1755444638594,-460.0,0.00019178,2]
[379939522,1755444638603,-463.85154358,0.00019178,2]
[379939523,1755444638612,-460.0,0.00019178,2]
[379939524,1755444638621,-460.0,0.00019178,2]
[379939525,1755444638631,-460.0,0.00019178,2]
[379939526,1755444638640,-460.0,0.00019178,2]
[379939527,1755444638649,-460.88117614,0.00019178,2]
[379939528,1755444638658,-460.0,0.00019178,2]
[379939529,1755444638667,-460.0,0.00019178,2]
[379939530,1755444638675,-461.38941649,0.00019178,2]
[379939531,1755444638684,-461.98463166,0.00019178,2]
[379939532,1755444638693,-461.33098447,0.00019178,2]
[379939533,1755444638702,-463.51697422,0.00019178,2]
[379939534,1755444638711,-460.0,0.00019178,2]
[379939535,1755444638720,-463.97197328,0.00019178,2]
[379939536,1755444638729,-460.16739173,0.00019178,2]
[379939537,1755444638738,-465.88654889,0.00019178,2]
[379939538,1755444638747,-460.0,0.00019178,2]
[379939539,1755444638756,-460.0,0.00019178,2]
[379939540,1755444638768,-461.14486151,0.00019178,2]
[379939541,1755444638777,-204.21217326,0.00019178,2]
[379939542,1755444638786,-460.67143711,0.00019178,2]
[379939543,1755444638795,-462.1237991,0.00019178,2]
[379939544,1755444638805,-480.0,0.00019178,2]
[379939545,1755444638817,-480.0,0.00019178,2]
[379939546,1755444638826,-460.48870533,0.00019178,2]
[379939547,1755444638835,-0.74950748,0.00019178,2]
[379939548,1755444638847,-459.25049252,0.00019178,2]
[379939549,1755444638856,-541.36019682,0.00019178,2]
[379939550,1755444638866,-460.84134675,0.00019178,2]
[379939551,1755444638875,-464.4814146,0.00019178,2]
[379939552,1755444638884,-461.98997468,0.00019178,2]
[379939553,1755444638893,-460.0,0.00019178,2]
[379939554,1755444638901,-480.0,0.00019178,2]
[379939555,1755444638910,-460.67401177,0.00019178,2]
[379939556,1755444638920,-460.0,0.00019178,2]
[379939557,1755444638929,-461.8991438,0.00019178,2]
[379939558,1755444638938,-460.0,0.00019178,2]
[379939559,1755444638948,-461.03418815,0.00019178,2]
[379939560,1755444638958,-461.91133845,0.00019178,2]
[379939561,1755444638967,-464.6771756,0.00019178,2]
[379939562,1755444638976,-460.0,0.00019178,2]
[379939563,1755444638985,-460.0,0.00019178,2]
[379939564,1755444638998,-480.0,0.00019178,2]
[379939565,1755444639007,-480.0,0.00019178,2]
[379939566,1755444639016,-480.0,0.00019178,2]
[379939567,1755444639025,-460.48092844,0.00019178,2]
[379939568,1755444639034,-480.0,0.00019178,2]
[379939569,1755444639043,-460.41214039,0.00019178,2]
[379939570,1755444639053,-461.4346182,0.00019178,2]
[379939571,1755444639063,-456.86622063,0.00019178,2]
[379939572,1755444639073,-480.0,0.00019178,2]
[379939573,1755444639082,-296.6862089,0.00019178,2]
[379939574,1755444639094,-165.31529734,0.00019178,2]
[379939575,1755444639103,-480.0,0.00019178,2]
[379939576,1755444639112,-460.0,0.00019178,2]
[379939577,1755444639121,-480.0,0.00019178,2]
[379939578,1755444639131,-461.1158034,0.00019178,2]
[379939579,1755444639140,-461.79105021,0.00019178,2]
[379939580,1755444639149,-480.0,0.00019178,2]
[379939581,1755444639158,-480.0,0.00019178,2]
[379939582,1755444639167,-461.20056579,0.00019178,2]
[379939583,1755444639176,-598.49076454,0.00019178,2]
[379939584,1755444639186,-460.0,0.00019178,2]
[379939585,1755444639195,-460.0,0.00019178,2]
[379939586,1755444639204,-460.0,0.00019178,2]
[379939587,1755444639214,-460.0,0.00019178,2]
[379939588,1755444639223,-515.75,0.00019178,2]
[379939589,1755444639232,-461.48171064,0.00019178,2]
[379939590,1755444639241,-480.0,0.00019178,2]
[379939591,1755444639250,-480.0,0.00019178,2]
[379939592,1755444639259,-460.0,0.00019178,2]
[379939593,1755444639269,-460.0,0.00019178,2]
[379939594,1755444639278,-460.0,0.00019178,2]
[379939595,1755444639287,-470.01634491,0.00019178,2]
[379939596,1755444639296,-460.0,0.00019178,2]
[379939597,1755444639306,-459.6853394,0.00019178,2]
[379939598,1755444639316,-480.0,0.00019178,2]
[379939599,1755444639326,-460.45281025,0.00019178,2]
[379939600,1755444639335,-462.4230419,0.00019178,2]
[379939601,1755444639345,-480.0,0.00019178,2]
[379939602,1755444639354,-481.74934585,0.00019178,2]
[379939603,1755444639363,-375.10880713,0.00019178,2]
[379939604,1755444639372,-480.0,0.00019178,2]
[379939605,1755444639382,-234.12,0.00019178,2]
[379939606,1755444639391,-594.02410839,0.00019178,2]
[379939607,1755444639400,-461.4081386,0.00019178,2]
[379939608,1755444639410,-480.0,0.00019178,2]
[379939609,1755444639419,-480.0,0.00019178,2]
[379939610,1755444639429,-460.0,0.00019178,2]
[379939611,1755444639438,-481.92907591,0.00019178,2]
[379939612,1755444639448,-481.44539575,0.00019178,2]
[379939613,1755444639457,-12.49240003,0.00019178,2]
[379939614,1755444639469,-588.28138613,0.00019178,2]
[379939615,1755444639479,-480.0,0.00019178,2]
[379939616,1755444639488,-480.0,0.00019178,2]
[379939617,1755444639497,-401.71862315,0.00019178,2]
[379939618,1755444639512,-78.28137685,0.00019178,2]
[379939619,1755444639521,-480.0,0.00019178,2]
[379939620,1755444639531,-460.0,0.00019178,2]
[379939621,1755444639541,-460.0,0.00019178,2]
[379939622,1755444639550,-480.0,0.00019178,2]
[379939624,1755444639561,-480.0,0.00019178,2]
[379939626,1755444639570,-460.0,0.00019178,2]
[379939628,1755444639581,-480.0,0.00019178,2]
[379939630,1755444639590,-480.0,0.00019178,2]
[379939632,1755444639600,-464.05009921,0.00019178,2]
[379939634,1755444639610,-480.0,0.00019178,2]
[379939636,1755444639619,-481.56987683,0.00019178,2]
[379939638,1755444639630,-480.0,0.00019178,2]
[379939640,1755444639639,-566.32999918,0.00019178,2]
[379939642,1755444639649,-547.13201002,0.00019178,2]
[379939643,1755444639660,-671.69,0.00019178,2]
[379939646,1755444639670,-481.64824762,0.00019178,2]
[379939647,1755444639680,-480.0,0.00019178,2]
[379939648,1755444639690,-480.0,0.00019178,2]
[379939649,1755444639700,-480.0,0.00019178,2]
[379939650,1755444639709,-480.0,0.00019178,2]
[379939651,1755444639718,-461.02573981,0.00019178,2]
[379939652,1755444639727,-480.0,0.00019178,2]
[379939653,1755444639737,-460.0,0.00019178,2]
[379939654,1755444639747,-580.05,0.00019178,2]
[379939656,1755444639757,-460.0,0.00019178,2]
[379939657,1755444639767,-480.0,0.00019178,2]
[379939658,1755444639777,-460.0,0.00019178,2]
[379939659,1755444639786,-460.0,0.00019178,2]
[379939660,1755444639796,-480.0,0.00019178,2]
[379939661,1755444639805,-480.0,0.00019178,2]
[379939662,1755444639819,-460.0,0.00019178,2]
[379939663,1755444639828,-480.0,0.00019178,2]
[379939664,1755444639838,-599.44,0.00019178,2]
[379939665,1755444639847,-480.0,0.00019178,2]
[379939666,1755444639857,-480.0,0.00019178,2]
[379939667,1755444639866,-480.0,0.00019178,2]
[379939669,1755444639875,-460.0,0.00019178,2]
[379939671,1755444639884,-480.0,0.00019178,2]
[379939673,1755444639894,-500.0,0.00019178,2]
[379939675,1755444639903,-1634.97,0.00019178,2]
[379939677,1755444639912,-480.6719377,0.00019178,2]
[379939679,1755444639922,-460.54170042,0.00019178,2]
[379939681,1755444639931,-480.0,0.00019178,2]
[379939683,1755444639940,-132.59901251,0.00019178,2]
[379939751,1755444640549,-271.70759998,0.00019072,2]
[379939753,1755444640562,-367.01240002,0.00019072,2]
[379939755,1755444640571,-347.40098749,0.00019178,2]
[379939757,1755444640582,-460.0,0.00019178,2]
[379939759,1755444640591,-480.0,0.00019178,2]
[379939761,1755444640601,-460.0,0.00019178,2]
[379939763,1755444640610,-480.0,0.00019178,2]
[379939765,1755444640619,-481.40968839,0.00019178,2]
[379939767,1755444640628,-480.9948733,0.00019178,2]
[379939769,1755444640637,-461.20061775,0.00019178,2]
[379939771,1755444640647,-480.0,0.00019178,2]
[379939773,1755444640656,-480.0,0.00019178,2]
[379939791,1755444640812,-320.0,0.00019178,2]
[379939794,1755444640828,-489.77,0.00019178,2]
[379939796,1755444640837,-460.71526313,0.00019178,2]
[379939798,1755444640847,-480.0,0.00019178,2]
[379939800,1755444640856,-481.4425772,0.00019178,2]
[379939802,1755444640865,-460.0,0.00019178,2]
[379939804,1755444640874,-460.0,0.00019178,2]
[379939806,1755444640883,-499.19060426,0.00019178,2]
[379939808,1755444640892,-460.0,0.00019178,2]
[379939809,1755444640902,-460.85599515,0.00019178,2]
[379939811,1755444640911,-189.79906775,0.00019178,2]
[379939813,1755444640920,-480.0,0.00019178,2]
[379939815,1755444640929,-480.0,0.00019178,2]
[379939817,1755444640939,-480.40167658,0.00019178,2]
[379939819,1755444640948,-480.0,0.00019178,2]
[379939821,1755444640957,-461.67507515,0.00019178,2]
[379939824,1755444640968,-480.0,0.00019178,2]
[379939826,1755444640978,-460.0,0.00019178,2]
[379939828,1755444640987,-460.0,0.00019178,2]
[379939829,1755444640999,-466.57483543,0.00019178,2]
[379939831,1755444641009,-443.97386721,0.00019178,2]
[379939833,1755444641019,-636.74,0.00019178,2]
[379939835,1755444641028,-480.0,0.00019178,2]
[379939837,1755444641037,-461.12699431,0.00019178,2]
[379939839,1755444641046,-460.0,0.00019178,2]
[379939841,1755444641056,-460.0,0.00019178,2]
[379939843,1755444641065,-489.87,0.00019178,2]
[379939845,1755444641075,-480.0,0.00019178,2]
[379939847,1755444641084,-542.00091212,0.00019178,2]
[379939849,1755444641093,-480.0,0.00019178,2]
[379939851,1755444641102,-460.0,0.00019178,2]
[379939853,1755444641112,-2338.26,0.00019178,2]
[379939855,1755444641121,-460.0,0.00019178,2]
[379939857,1755444641130,-466.99615039,0.00019178,2]
[379939859,1755444641140,-480.0,0.00019178,2]
[379939861,1755444641149,-460.0,0.00019178,2]
[379939863,1755444641159,-480.0,0.00019178,2]
[379939865,1755444641168,-481.07602913,0.00019178,2]
[379939867,1755444641177,-460.0,0.00019178,2]
[379939869,1755444641186,-461.0666284,0.00019178,2]
[379939871,1755444641196,-467.39255736,0.00019178,2]
[379939873,1755444641205,-460.0,0.00019178,2]
[379939875,1755444641214,-460.0,0.00019178,2]
[379939877,1755444641225,-480.0,0.00019178,2]
[379939878,1755444641234,-469.8652481,0.00019178,2]
[379939880,1755444641243,-480.0,0.00019178,2]
[379939882,1755444641253,-443.96229288,0.00019178,2]
[379939884,1755444641263,-503.86,0.00019178,2]
[379939886,1755444641272,-480.0,0.00019178,2]
[379939888,1755444641281,-633.20893818,0.00019178,2]
[379939890,1755444641290,-462.26907402,0.00019178,2]
[379939892,1755444641300,-461.66344255,0.00019178,2]
[379939894,1755444641309,-480.0,0.00019178,2]
[379939896,1755444641319,-460.0,0.00019178,2]
[379939898,1755444641328,-480.0,0.00019178,2]
[379939900,1755444641337,-575.20462202,0.00019178,2]
[379939902,1755444641347,-460.0,0.00019178,2]
[379939904,1755444641356,-460.0,0.00019178,2]
[379939906,1755444641366,-480.0,0.00019178,2]
[379939908,1755444641375,-480.0,0.00019178,2]
[379939910,1755444641384,-480.0,0.00019178,2]
[379939912,1755444641394,-480.0,0.00019178,2]
[379939914,1755444641403,-1285.07,0.00019178,2]
[379939916,1755444641413,-463.23249831,0.00019178,2]
[379939917,1755444641422,-480.0,0.00019178,2]
[379939919,1755444641431,-480.0,0.00019178,2]
[379939921,1755444641441,-707.89,0.00019178,2]
[379939924,1755444641450,-461.46200814,0.00019178,2]
[379939925,1755444641460,-510.35,0.00019178,2]
[379939927,1755444641469,-480.0,0.00019178,2]
[379939929,1755444641478,-460.0,0.00019178,2]
[379939931,1755444641488,-1662.18,0.00019178,2]
[379939933,1755444641497,-460.0,0.00019178,2]
[379939935,1755444641506,-373.23298229,0.00019178,2]
[379939937,1755444641515,-460.0,0.00019178,2]
[379939939,1755444641524,-480.0,0.00019178,2]
[379939941,1755444641533,-480.0,0.00019178,2]
[379939943,1755444641542,-460.98465797,0.00019178,2]
[379939945,1755444641551,-461.16710078,0.00019178,2]
[379939947,1755444641560,-460.0,0.00019178,2]
[379939949,1755444641570,-462.90498832,0.00019178,2]
[379939951,1755444641579,-460.0,0.00019178,2]
[379939953,1755444641588,-480.0,0.00019178,2]
[379939955,1755444641598,-460.52114727,0.00019178,2]
[379939957,1755444641607,-422.53977297,0.00019178,2]
[379939958,1755444641616,-460.0,0.00019178,2]
[379939960,1755444641625,-421.7992413,0.00019178,2]
[379939962,1755444641634,-480.0,0.00019178,2]
[379939964,1755444641644,-480.0,0.00019178,2]
[379939966,1755444641654,-7789.68518438,0.00019178,2]
[379940101,1755444643459,-15382.86354142,0.00019178,2]
[379940103,1755444643469,-5000.0,0.00019178,2]
[379940105,1755444643478,-2017.71113297,0.00019178,2]
[379940107,1755444643487,-3000.0,0.000192,2]
[379940109,1755444643496,-3916.92532561,0.00019261,2]
[379940121,1755444643610,-1083.07467439,0.00019261,2]
[379940123,1755444643619,-150.0,0.00019318,2]
[379940125,1755444643629,-20544.92532561,0.00019329,2]
[379940127,1755444643640,-4076.66575234,0.00019329,2]
[379940467,1755444646941,-741.98,0.00019178,2]
[379940469,1755444646950,-694.26338118,0.00019329,2]
[379940471,1755444646961,-4262.33506886,0.00019329,2]
[379940474,1755444646972,-6501.91767592,0.00019329,2]
[379940476,1755444646983,-31250.8835802,0.00019329,2]
[379940478,1755444646995,-737.66493114,0.00019329,2]
[379941543,1755444680236,2387.55680227,0.00018304,2]
[379941544,1755444680260,4001.79084792,0.00018304,2]
[379941561,1755444743015,1412.1552826,0.00018151,2]
[379941563,1755444760330,1000.0,0.00018136,2]
[379941569,1755444845769,3586.05386948,0.00018371,2]